bitfinex-derivatives/quotes_BTCF0:USTF0_20240817
["timestamp","ask_amount","ask_price","bid_price","bid_amount"]
[1723882736758,0.02720676,59206.0,59205.0,1.6758991]
[1723882737958,0.02720676,59206.0,59205.0,1.57468763]
[1723882738863,0.02720676,59206.0,59205.0,0.70729913]
[1723882739166,0.02720676,59206.0,59205.0,0.57866437]
[1723882739866,0.02720676,59206.0,59205.0,0.70730652]
[1723882740663,0.02720676,59206.0,59205.0,0.65250323]
[1723882740860,0.02720676,59206.0,59205.0,0.70730954]
[1723882741055,0.18805376,59206.0,59205.0,0.42678789]
[1723882742363,0.18805376,59206.0,59205.0,0.41660631]
[1723882742963,0.18805376,59206.0,59205.0,0.39896516]
[1723882744163,0.18805376,59206.0,59205.0,0.03816516]
[1723882752570,0.18805376,59206.0,59205.0,0.001]
[1723882752880,0.18805376,59206.0,59205.0,0.03816831]
[1723882753279,0.09475376,59206.0,59205.0,0.03816831]
[1723882753478,0.18805376,59206.0,59205.0,0.03816831]
[1723882753872,0.18805376,59206.0,59205.0,0.05581022]
[1723882754179,0.18805376,59206.0,59205.0,0.03816831]
[1723882754764,0.19805376,59206.0,59205.0,0.03816831]
[1723882755776,0.19805376,59206.0,59205.0,0.10563886]
[1723882756276,0.19805376,59206.0,59205.0,0.03816831]
[1723882756975,0.18805376,59206.0,59205.0,0.03816831]
[1723882757381,0.18805376,59206.0,59205.0,0.08876928]
[1723882757582,0.18805376,59206.0,59205.0,0.03816831]
[1723882758087,0.09475376,59206.0,59205.0,0.03816831]
[1723882758884,0.02720676,59206.0,59205.0,0.03816831]
[1723882759087,0.02720676,59206.0,59205.0,0.10563886]
[1723882760095,0.02720676,59206.0,59205.0,0.17318686]
[1723882762292,0.02720676,59206.0,59205.0,0.17318672]
[1723882763300,0.02720676,59206.0,59205.0,0.10571617]
[1723882763999,0.02720676,59206.0,59205.0,0.28504767]
[1723882764201,0.02720676,59206.0,59205.0,0.20071617]
[1723882765195,0.02674676,59206.0,59205.0,0.20071617]
[1723882766198,0.02674676,59206.0,59205.0,0.28504767]
[1723882767303,0.02674676,59206.0,59205.0,0.41369257]
[1723882768092,0.02674676,59206.0,59205.0,0.41369202]
[1723882768296,0.02674676,59206.0,59205.0,0.32936052]
[1723882769105,0.02674676,59206.0,59205.0,0.29219235]
[1723882769297,0.02674676,59206.0,59205.0,0.32935814]
[1723882771307,0.02674676,59206.0,59205.0,0.34699945]
[1723882771700,0.02674676,59206.0,59205.0,0.41377575]
[1723882771909,0.02674676,59206.0,59205.0,0.41377671]
[1723882772607,0.02674676,59206.0,59205.0,0.77457936]
[1723882773109,0.02674676,59206.0,59205.0,0.69016079]
[1723882773296,0.02674676,59206.0,59205.0,0.77457735]
[1723882773495,0.02674676,59206.0,59205.0,0.73741154]
[1723882773800,0.02674676,59206.0,59205.0,0.69016128]
[1723882774201,0.02674676,59206.0,59205.0,0.64246128]
[1723882775904,0.02674676,59206.0,59205.0,0.6601027]
[1723882776708,0.02674676,59206.0,59205.0,0.6128027]
[1723882777110,0.02674676,59206.0,59205.0,0.2520027]
[1723882777506,0.02674676,59206.0,59205.0,0.6128027]
[1723882778514,0.02674676,59206.0,59205.0,0.2520027]
[1723882778712,0.02674676,59206.0,59205.0,0.6128027]
[1723882779413,0.02720676,59206.0,59205.0,0.6128027]
[1723882781105,0.02720676,59206.0,59205.0,0.59516128]
[1723882781821,0.02720676,59206.0,59205.0,0.59515871]
[1723882782412,0.02720676,59206.0,59205.0,0.25200003]
[1723882782812,0.02720676,59206.0,59205.0,0.61280003]
[1723882783308,0.02720676,59206.0,59205.0,0.25200003]
[1723882783510,0.02720676,59206.0,59205.0,0.61280003]
[1723882785917,0.02720676,59206.0,59205.0,1.11952003]
[1723882786420,0.02720676,59206.0,59205.0,1.11951652]
[1723882786603,0.02720676,59206.0,59205.0,1.51951652]
[1723882786809,0.02720676,59206.0,59205.0,1.66626697]
[1723882787420,0.02720676,59206.0,59205.0,5.43626697]
[1723882788315,0.02720676,59206.0,59205.0,5.4362654]
[1723882788513,0.02720676,59206.0,59205.0,4.9295454]
[1723882788712,0.02720676,59206.0,59205.0,5.4362654]
[1723882790416,0.02720676,59206.0,59205.0,5.28951495]
[1723882790718,0.02720676,59206.0,59205.0,5.28949424]
[1723882792311,0.00025324,59212.0,59211.0,0.067541]
[1723882792519,0.00025324,59212.0,59211.0,0.70506724]
[1723882793821,0.01225324,59212.0,59211.0,0.70606724]
[1723882794422,0.01225324,59212.0,59211.0,0.65126472]
[1723882794721,0.01225324,59212.0,59211.0,0.70606383]
[1723882795121,0.01625324,59212.0,59211.0,0.70706383]
[1723882795330,0.01625324,59212.0,59211.0,0.80173976]
[1723882796025,0.01625324,59212.0,59211.0,0.71749081]
[1723882796216,0.01625324,59212.0,59211.0,0.80173661]
[1723882796416,0.01625324,59212.0,59211.0,0.69984961]
[1723882797912,0.01625324,59212.0,59211.0,0.78408974]
[1723882798124,0.01625324,59212.0,59211.0,0.69984961]
[1723882800017,0.01625324,59212.0,59211.0,0.69984905]
[1723882801622,0.01625324,59212.0,59211.0,0.78408053]
[1723882801925,0.01625324,59212.0,59211.0,0.78408049]
[1723882802425,0.01625324,59212.0,59211.0,0.69984901]
[1723882802927,0.01625324,59212.0,59211.0,4.46984901]
[1723882803115,0.01625324,59212.0,59211.0,4.57172179]
[1723882803435,0.01625324,59212.0,59211.0,4.48748868]
[1723882805827,0.01625324,59212.0,59211.0,4.55409086]
[1723882806414,0.01625324,59212.0,59211.0,4.58937027]
[1723882808032,0.01625324,59212.0,59211.0,4.50512842]
[1723882808637,0.01625324,59212.0,59211.0,4.48748872]
[1723882809221,0.01625324,59212.0,59211.0,4.46984902]
[1723882810628,0.01625324,59212.0,59211.0,0.65551375]
[1723882810838,0.01625324,59212.0,59211.0,0.57122735]
[1723882812031,0.01625324,59212.0,59211.0,0.21042735]
[1723882812223,0.01625324,59212.0,59211.0,0.65551375]
[1723882813332,0.01625324,59212.0,59211.0,0.7841448]
[1723882814433,0.01625324,59212.0,59211.0,0.6998584]
[1723882814929,0.01625324,59212.0,59211.0,0.6065584]
[1723882815231,0.06677287,59212.0,59211.0,0.42343142]
[1723882815619,0.06677287,59212.0,59211.0,0.38627205]
[1723882815826,0.06677287,59212.0,59211.0,0.42343537]
[1723882816331,0.06677287,59212.0,59211.0,0.42346671]
[1723882816826,0.06677287,59212.0,59211.0,0.0495903]
[1723882816827,0.08379324,59212.0,59211.0,0.0495903]
[1723882817031,0.08379324,59212.0,59211.0,0.01242698]
[1723882817229,0.19995652,59212.0,59211.0,0.01242698]
[1723882817430,0.13249324,59212.0,59211.0,0.07993212]
[1723882817830,0.13249324,59212.0,59211.0,0.01242698]
[1723882818327,0.13249324,59212.0,59211.0,0.07991983]
[1723882820432,0.13249324,59212.0,59211.0,0.01242698]
[1723882822436,0.18300149,59212.0,59211.0,0.01242698]
[1723882822734,0.18346149,59212.0,59211.0,0.01242698]
[1723882825432,0.18346149,59212.0,59211.0,0.04959239]
[1723882825634,0.18346149,59212.0,59211.0,0.01242698]
[1723882825838,0.18346149,59212.0,59211.0,0.04959239]
[1723882826341,0.18346149,59212.0,59211.0,0.14289239]
[1723882826730,0.13295324,59212.0,59211.0,0.21038524]
[1723882827230,0.13295324,59212.0,59211.0,0.14289239]
[1723882831035,0.13295324,59212.0,59211.0,0.14289138]
[1723882831638,0.01671324,59212.0,59211.0,0.27792523]
[1723882835844,0.01671324,59212.0,59211.0,0.21043238]
[1723882836432,0.01671324,59212.0,59211.0,0.21043188]
[1723882838030,0.01671324,59212.0,59211.0,0.22807271]
[1723882838740,0.01671324,59212.0,59211.0,0.21043188]
[1723882838938,0.01671324,59212.0,59211.0,0.2280727]
[1723882840733,0.01671324,59212.0,59211.0,0.21043188]
[1723882840940,0.01671324,59212.0,59211.0,0.22807267]
[1723882843545,0.01671324,59212.0,59211.0,0.86334557]
[1723882844250,0.01671324,59212.0,59211.0,1.36462339]
[1723882844447,0.05056406,59230.0,59218.0,0.067533]
[1723882844644,0.05056406,59231.0,59230.0,0.06752]
[1723882844845,0.05056406,59231.0,59230.0,0.17214069]
[1723882845370,0.41136406,59233.0,59230.0,0.10468384]
[1723882845539,0.41136406,59233.0,59232.0,0.0933]
[1723882846448,0.3608,59233.0,59232.0,0.0933]
[1723882846744,0.3618,59233.0,59232.0,0.0943]
[1723882847753,0.3618,59233.0,59232.0,0.0953]
[1723882848754,0.001,59233.0,59232.0,0.0953]
[1723882857859,0.07156406,59233.0,59232.0,0.0953]
[1723882858362,0.11676406,59233.0,59232.0,0.0953]
[1723882862353,0.0662,59233.0,59232.0,0.0953]
[1723882862550,0.11664302,59233.0,59232.0,0.0953]
[1723882862954,0.0662,59233.0,59232.0,0.0953]
[1723882865463,0.733496,59233.0,59232.0,0.002]
[1723882865666,0.06752,59230.0,59229.0,0.001]
[1723882865965,0.067523,59227.0,59225.0,0.00025324]
[1723882866270,0.428324,59226.0,59225.0,0.01061596]
[1723882866454,0.428324,59226.0,59225.0,0.00025324]
[1723882867570,0.47878263,59226.0,59225.0,0.00025324]
[1723882868367,0.428324,59226.0,59225.0,0.00025324]
[1723882869167,0.48278263,59226.0,59225.0,0.00225324]
[1723882869561,0.432324,59226.0,59225.0,0.00225324]
[1723882872262,0.535624,59226.0,59225.0,0.00225324]
[1723882872462,0.59308728,59226.0,59225.0,0.00225324]
[1723882873068,0.60308728,59226.0,59225.0,0.00225324]
[1723882873470,0.525624,59226.0,59225.0,0.00225324]
[1723882873676,0.535624,59226.0,59225.0,0.00225324]
[1723882874268,0.59304399,59226.0,59225.0,0.00225324]
[1723882874872,0.23224399,59226.0,59225.0,0.00225324]
[1723882875073,0.59304399,59226.0,59225.0,0.00225324]
[1723882875668,0.64304399,59226.0,59225.0,0.00225324]
[1723882876762,0.575624,59226.0,59225.0,0.00225324]
[1723882877277,0.545624,59226.0,59225.0,0.00225324]
[1723882877467,0.184824,59226.0,59225.0,0.00225324]
[1723882877670,0.545624,59226.0,59225.0,0.00225324]
[1723882878179,0.61302317,59226.0,59225.0,0.00225324]
[1723882880685,0.545624,59226.0,59225.0,0.00225324]
[1723882884891,0.184824,59226.0,59225.0,0.00225324]
[1723882885088,0.545624,59226.0,59225.0,0.00225324]
[1723882889887,0.067531,59220.0,59218.0,0.05055136]
[1723882890095,0.0933,59219.0,59217.0,0.05055136]
[1723882890292,0.067534,59217.0,59216.0,0.05055136]
[1723882890488,0.067536,59216.0,59215.0,0.41135136]
[1723882890683,0.14809077,59216.0,59215.0,0.41135136]
[1723882890992,0.06754,59212.0,59211.0,0.05055136]
[1723882891293,0.15809208,59212.0,59211.0,0.05055136]
[1723882891592,0.14809208,59212.0,59211.0,0.05055136]
[1723882892186,0.12009208,59212.0,59211.0,0.001]
[1723882893194,0.12009208,59212.0,59211.0,0.05155136]
[1723882894093,0.12309208,59212.0,59211.0,0.002]
[1723882895185,0.12309208,59212.0,59211.0,0.05255136]
[1723882898200,0.12309208,59212.0,59211.0,0.002]
[1723882900091,0.07254,59212.0,59211.0,0.002]
[1723882902592,0.005,59212.0,59211.0,0.10235136]
[1723882902797,0.005,59212.0,59211.0,0.19815136]
[1723882902996,0.005,59212.0,59211.0,0.1476]
[1723882906902,0.005,59212.0,59211.0,0.19815682]
[1723882907304,0.005,59212.0,59211.0,0.1476]
[1723882907706,0.005,59212.0,59211.0,0.2409]
[1723882907707,0.05555208,59212.0,59211.0,0.2409]
[1723882908096,0.05555208,59212.0,59211.0,0.29146013]
[1723882908502,0.05555208,59212.0,59211.0,0.2409]
[1723882909311,0.005,59212.0,59211.0,0.2409]
[1723882910708,0.00546,59212.0,59211.0,0.2409]
[1723882913917,0.00546,59212.0,59211.0,0.308441]
[1723882914209,0.00546,59212.0,59211.0,0.41306334]
[1723882914416,0.00546,59212.0,59211.0,4.18306334]
[1723882915206,0.00546,59212.0,59211.0,4.11560649]
[1723882916708,0.07286278,59212.0,59211.0,4.18307598]
[1723882917216,0.07286278,59212.0,59211.0,4.11560649]
[1723882917414,0.07286278,59212.0,59211.0,0.34560649]
[1723882917723,0.07286278,59212.0,59211.0,0.308441]
[1723882918013,0.07286278,59212.0,59211.0,0.34560663]
[1723882918213,0.00546,59212.0,59211.0,0.34560663]
[1723882918717,0.07290896,59212.0,59211.0,0.34560663]
[1723882919216,0.00546,59212.0,59211.0,0.34560663]
[1723882921416,0.00546,59212.0,59211.0,0.79072909]
[1723882921816,0.00546,59212.0,59211.0,0.91936547]
[1723882922012,0.00546,59212.0,59211.0,0.85268358]
[1723882922312,0.00546,59212.0,59211.0,0.83504301]
[1723882923407,0.00546,59212.0,59211.0,0.91945727]
[1723882924017,0.00546,59212.0,59211.0,0.83504301]
[1723882924219,0.00546,59212.0,59211.0,0.91945092]
[1723882924415,0.00546,59212.0,59211.0,0.70640663]
[1723882924615,0.00546,59212.0,59211.0,0.6106049]
[1723882925103,0.00546,59212.0,59211.0,0.523641]
[1723882925311,0.00546,59212.0,59211.0,0.5608049]
[1723882926318,0.07296298,59212.0,59211.0,0.5608049]
[1723882926914,0.00546,59212.0,59211.0,0.5608049]
[1723882927311,0.07296298,59212.0,59211.0,0.5608049]
[1723882927512,0.07296298,59212.0,59211.0,0.2000049]
[1723882927808,0.00546,59212.0,59211.0,0.2000049]
[1723882928312,0.07296298,59212.0,59211.0,0.2000049]
[1723882933012,0.00546,59212.0,59211.0,0.2000049]
[1723882933214,0.00546,59212.0,59211.0,0.162841]
[1723882933416,0.00546,59212.0,59211.0,0.20000537]
[1723882934521,0.00546,59212.0,59211.0,0.21764632]
[1723882938009,0.00546,59212.0,59211.0,0.20000538]
[1723882939421,0.005,59212.0,59211.0,0.20000537]
[1723882942633,0.00074676,59212.0,59211.0,0.80869421]
[1723882942810,0.00074676,59212.0,59211.0,1.30092447]
[1723882943013,0.00074676,59212.0,59211.0,1.40211142]
[1723882943212,0.00074676,59212.0,59211.0,1.30092447]
[1723882944523,0.00074676,59212.0,59211.0,1.40217068]
[1723882945324,0.00074676,59212.0,59211.0,1.20762447]
[1723882945518,0.00074676,59212.0,59211.0,0.90092447]
[1723882946031,0.00074676,59212.0,59211.0,0.90091551]
[1723882946223,0.00074676,59212.0,59211.0,0.84611021]
[1723882946432,0.00074676,59212.0,59211.0,0.90091185]
[1723882946923,0.00074676,59212.0,59211.0,1.30091185]
[1723882948426,0.00074676,59212.0,59211.0,0.90091185]
[1723882948628,0.00074676,59212.0,59211.0,1.26171185]
[1723882949131,0.00074676,59212.0,59211.0,0.90091185]
[1723882949322,0.00074676,59212.0,59211.0,1.26171185]
[1723882949523,0.00074676,59212.0,59211.0,0.90091185]
[1723882949718,0.00074676,59212.0,59211.0,1.26171185]
[1723882950119,0.00074676,59212.0,59211.0,0.90091185]
[1723882950326,0.00074676,59212.0,59211.0,0.75507185]
[1723882950521,0.00074676,59212.0,59211.0,0.39426987]
[1723882950720,0.00074676,59212.0,59211.0,0.71790845]
[1723882950920,0.00074676,59212.0,59211.0,0.7550693]
[1723882951322,0.00074676,59212.0,59211.0,0.7179083]
[1723882951533,0.00074676,59212.0,59211.0,0.75506915]
[1723882952815,0.00074676,59212.0,59211.0,0.90027218]
[1723882953029,0.00025324,59221.0,59220.0,0.067531]
[1723882953226,0.00025324,59221.0,59220.0,0.10469185]
[1723882953626,0.00025324,59221.0,59220.0,0.10423185]
[1723882955029,0.00025324,59221.0,59220.0,0.10523185]
[1723882955229,0.00025324,59221.0,59220.0,0.10623185]
[1723882955529,0.00025324,59221.0,59220.0,0.10622826]
[1723882956223,0.00025324,59221.0,59220.0,0.17364704]
[1723882956622,0.00025324,59221.0,59220.0,0.17364051]
[1723882957317,0.00025324,59221.0,59220.0,0.10622826]
[1723882958321,0.00025324,59221.0,59220.0,0.11643094]
[1723882959628,0.00025324,59221.0,59220.0,0.18384319]
[1723882961834,0.00025324,59221.0,59220.0,0.11643094]
[1723882963433,0.00025324,59221.0,59220.0,0.47723094]
[1723882965130,0.00025324,59221.0,59220.0,0.44007368]
[1723882965329,0.00025324,59221.0,59220.0,0.47723078]
[1723882965725,0.00025324,59221.0,59220.0,0.11643078]
[1723882965933,0.00025324,59221.0,59220.0,0.18384374]
[1723882966434,0.00025324,59221.0,59220.0,0.11643078]
[1723882968841,0.00025324,59221.0,59220.0,0.47723078]
[1723882969032,0.00025324,59221.0,59220.0,0.44007368]
[1723882969340,0.00025324,59221.0,59220.0,0.47723084]
[1723882970331,0.05087396,59221.0,59220.0,0.47723084]
[1723882970532,0.00025324,59221.0,59220.0,0.47723084]
[1723882970832,0.00025324,59221.0,59220.0,0.11643084]
[1723882971031,0.00025324,59221.0,59220.0,0.47723084]
[1723882971238,0.05087396,59221.0,59220.0,0.47723084]
[1723882972335,0.00025324,59221.0,59220.0,0.47723084]
[1723882974536,0.00025324,59221.0,59220.0,0.56154047]
[1723882975739,0.00025324,59221.0,59220.0,0.20074047]
[1723882975938,0.00025324,59221.0,59220.0,0.56154047]
[1723882976241,0.05080902,59221.0,59220.0,0.56154047]
[1723882976939,0.05080902,59221.0,59220.0,0.20074047]
[1723882977141,0.05080902,59221.0,59220.0,0.56154047]
[1723882977848,0.05080902,59221.0,59220.0,0.20074047]
[1723882978051,0.05080902,59221.0,59220.0,0.56154047]
[1723882978345,0.00025324,59221.0,59220.0,0.69015473]
[1723882978546,0.00025324,59221.0,59220.0,0.32935473]
[1723882978748,0.00025324,59221.0,59220.0,0.69015473]
[1723882979649,0.00025324,59221.0,59220.0,0.32935473]
[1723882979848,0.00025324,59221.0,59220.0,0.69015473]
[1723882980340,0.00025324,59221.0,59220.0,0.69015466]
[1723882980840,0.00025324,59221.0,59220.0,0.69015468]
[1723882981339,0.00025324,59221.0,59220.0,0.60584505]
[1723882982541,0.00025324,59221.0,59220.0,0.24504505]
[1723882982751,0.00025324,59221.0,59220.0,0.60584505]
[1723882982953,0.00025324,59221.0,59220.0,0.24504505]
[1723882983252,0.00025324,59221.0,59220.0,0.60584505]
[1723882983756,0.00025324,59221.0,59220.0,0.60584504]
[1723882985851,0.00025324,59221.0,59220.0,0.60584467]
[1723882987150,0.00025324,59221.0,59220.0,0.62348378]
[1723882988548,0.00025324,59221.0,59220.0,0.62348368]
[1723882990455,0.00025324,59221.0,59220.0,0.6234833]
[1723882993146,0.00025324,59221.0,59220.0,0.58632626]
[1723882993347,0.00025324,59221.0,59220.0,0.2626831]
[1723882993546,0.00025324,59221.0,59220.0,0.56868719]
[1723882993752,0.00025324,59221.0,59220.0,0.62348308]
[1723882993949,0.00025324,59221.0,59220.0,0.26268308]
[1723882994150,0.00025324,59221.0,59220.0,0.62348308]
[1723882996457,0.00025324,59221.0,59220.0,0.26268308]
[1723882996959,0.00025324,59221.0,59220.0,0.62348308]
[1723882997561,0.00071324,59221.0,59220.0,0.56868719]
[1723882997759,0.00071324,59221.0,59220.0,0.6234831]
[1723883002060,0.00071324,59221.0,59220.0,0.24504403]
[1723883002255,0.00071324,59221.0,59220.0,0.6234831]
[1723883004364,0.00071324,59221.0,59220.0,0.62348293]
[1723883004754,0.05134444,59221.0,59220.0,0.62348293]
[1723883004959,0.05134444,59221.0,59220.0,0.72465449]
[1723883005258,0.00071324,59221.0,59220.0,0.72465449]
[1723883006763,0.00071324,59221.0,59220.0,0.62348293]
[1723883006764,0.05134444,59221.0,59220.0,0.62348293]
[1723883007174,0.05134444,59221.0,59220.0,0.62348228]
[1723883008876,0.05134444,59221.0,59220.0,0.62348031]
[1723883010171,0.05134273,59221.0,59220.0,0.62348031]
[1723883010371,0.05063081,59228.0,59220.0,1.77744285]
[1723883010575,0.06750298,59233.0,59232.0,0.067517]
[1723883010775,0.13501698,59235.0,59233.0,0.067516]
[1723883010965,0.067514,59235.0,59234.0,0.12230146]
[1723883011365,0.11751517,59236.0,59235.0,0.067514]
[1723883011566,0.11751517,59236.0,59235.0,0.26543316]
[1723883012163,0.11751517,59236.0,59235.0,0.19796328]
[1723883012164,0.05,59236.0,59235.0,0.19796328]
[1723883012369,0.05,59236.0,59235.0,0.19896328]
[1723883013178,0.0457,59237.0,59236.0,0.067513]
[1723883013379,0.11276841,59240.0,59236.0,0.03714928]
[1723883013580,0.11276841,59240.0,59235.0,0.16276988]
[1723883013581,0.04525324,59240.0,59239.0,0.0933]
[1723883013882,0.04525324,59240.0,59239.0,0.13044928]
[1723883014272,0.04525324,59240.0,59239.0,0.0933]
[1723883014273,0.11265207,59240.0,59239.0,0.0933]
[1723883015274,0.04525324,59240.0,59239.0,0.0933]
[1723883016066,0.04525324,59240.0,59239.0,0.0953]
[1723883018379,0.09576676,59240.0,59239.0,0.0953]
[1723883020373,0.09576676,59240.0,59239.0,0.10569582]
[1723883021083,0.04525324,59240.0,59239.0,0.10569582]
[1723883022589,0.09576676,59240.0,59239.0,0.10569582]
[1723883026382,0.04525324,59240.0,59239.0,0.10569582]
[1723883026988,0.09574647,59240.0,59239.0,0.10569582]
[1723883027191,0.04525324,59240.0,59239.0,0.10569582]
[1723883029189,0.04525324,59240.0,59239.0,0.17320482]
[1723883031690,0.09576487,59240.0,59239.0,0.17320482]
[1723883032986,0.04525324,59240.0,59239.0,0.17320482]
[1723883033289,0.09576487,59240.0,59239.0,0.17320482]
[1723883033490,0.04525324,59240.0,59239.0,0.17320482]
[1723883033892,0.09576487,59240.0,59239.0,0.17320482]
[1723883035091,0.09576487,59240.0,59239.0,0.22377167]
[1723883035392,0.05076487,59240.0,59239.0,0.22377167]
[1723883035890,0.05076487,59240.0,59239.0,0.17320482]
[1723883036092,0.00025324,59240.0,59239.0,0.22377167]
[1723883038193,0.00025324,59240.0,59239.0,0.17320482]
[1723883039289,0.06765207,59240.0,59239.0,0.17320482]
[1723883039491,0.00025324,59240.0,59239.0,0.17320482]
[1723883039892,0.05084866,59240.0,59239.0,0.17320482]
[1723883040093,0.00025324,59240.0,59239.0,0.38617752]
[1723883040294,0.00025324,59240.0,59239.0,4.15617752]
[1723883040693,0.00071324,59240.0,59239.0,4.15517752]
[1723883040985,0.00071324,59240.0,59239.0,3.94320482]
[1723883041193,0.00071324,59240.0,59239.0,4.19332314]
[1723883041390,0.00071324,59240.0,59239.0,4.19232314]
[1723883041590,0.00071324,59240.0,59239.0,0.42332314]
[1723883041787,0.00071324,59240.0,59239.0,0.29474889]
[1723883041991,0.00071324,59240.0,59239.0,0.42332282]
[1723883042297,0.05133075,59240.0,59239.0,0.42332282]
[1723883042492,0.00071324,59240.0,59239.0,0.38617704]
[1723883044502,0.00071324,59240.0,59239.0,0.16430311]
[1723883044687,0.00071324,59240.0,59239.0,0.25760311]
[1723883045505,0.00071324,59240.0,59239.0,0.17320482]
[1723883045798,0.00071324,59240.0,59239.0,0.25760311]
[1723883046003,0.00071324,59240.0,59239.0,0.29474867]
[1723883046207,0.05133075,59240.0,59239.0,0.21035038]
[1723883046393,0.00071324,59240.0,59239.0,0.21035038]
[1723883046795,0.00071324,59240.0,59239.0,0.69971372]
[1723883046994,0.85481324,59240.0,59238.0,0.06746855]
[1723883047193,0.85481324,59240.0,59234.0,0.05060436]
[1723883047194,0.067514,59235.0,59234.0,0.05060436]
[1723883047398,0.50146165,59235.0,59231.0,0.05060436]
[1723883047598,0.08427931,59232.0,59230.0,0.05060436]
[1723883047799,0.08427931,59232.0,59231.0,0.03715672]
[1723883048100,0.08427931,59232.0,59231.0,0.03715698]
[1723883048402,0.17757931,59233.0,59231.0,0.03715698]
[1723883048599,0.17757931,59233.0,59229.0,0.0933]
[1723883048801,0.067518,59231.0,59230.0,0.03715714]
[1723883049102,0.160818,59231.0,59230.0,0.03715714]
[1723883050102,0.161818,59231.0,59230.0,0.03815714]
[1723883050903,0.522618,59231.0,59230.0,0.03815714]
[1723883051099,0.522618,59231.0,59230.0,0.03915714]
[1723883051406,0.536618,59231.0,59230.0,0.03915714]
[1723883052399,0.536618,59231.0,59230.0,0.002]
[1723883052704,0.536618,59231.0,59230.0,0.03915703]
[1723883053998,0.536618,59231.0,59230.0,0.002]
[1723883054401,0.536618,59231.0,59230.0,0.03915708]
[1723883054996,0.546618,59231.0,59230.0,0.03915708]
[1723883057308,0.546618,59231.0,59230.0,0.002]
[1723883060111,0.907418,59231.0,59230.0,0.002]
[1723883061007,0.185818,59231.0,59230.0,0.002]
[1723883061305,0.907418,59231.0,59230.0,0.002]
[1723883062108,0.185818,59231.0,59230.0,0.002]
[1723883062308,0.907418,59231.0,59230.0,0.002]
[1723883064109,0.185818,59231.0,59230.0,0.002]
[1723883064309,0.907418,59231.0,59230.0,0.002]
[1723883065401,0.185818,59231.0,59230.0,0.002]
[1723883065717,0.907418,59231.0,59230.0,0.002]
[1723883070108,0.185818,59231.0,59230.0,0.002]
[1723883070308,1.813898,59231.0,59230.0,0.002]
[1723883070615,1.83065931,59231.0,59220.0,0.0475]
[1723883070914,0.50452231,59221.0,59220.0,0.0475]
[1723883071114,0.55452231,59221.0,59220.0,0.0475]
[1723883071313,0.62205231,59221.0,59220.0,0.0475]
[1723883071624,0.57163,59221.0,59220.0,0.0475]
[1723883072009,0.57163,59221.0,59219.0,0.0472]
[1723883072010,0.067536,59216.0,59214.0,0.0481]
[1723883072205,0.521637,59215.0,59214.0,0.0481]
[1723883072405,0.591637,59215.0,59214.0,0.0481]
[1723883073312,0.591637,59215.0,59214.0,0.0491]
[1723883075419,0.64211734,59215.0,59214.0,0.0491]
[1723883076217,0.28131734,59215.0,59214.0,0.0491]
[1723883076423,0.591637,59215.0,59214.0,0.0491]
[1723883076619,0.60185223,59215.0,59214.0,0.0491]
[1723883077321,0.591637,59215.0,59214.0,0.0491]
[1723883077925,0.65886675,59215.0,59214.0,0.0491]
[1723883079330,0.591637,59215.0,59214.0,0.0491]
[1723883079622,0.230837,59215.0,59214.0,0.0491]
[1723883079817,0.591637,59215.0,59214.0,0.0491]
[1723883080423,0.65896936,59215.0,59214.0,0.0491]
[1723883080728,0.58896936,59215.0,59214.0,0.0491]
[1723883081022,0.59896936,59215.0,59214.0,0.0491]
[1723883081418,0.59896717,59215.0,59214.0,0.0491]
[1723883082124,0.23816717,59215.0,59214.0,0.0491]
[1723883082323,0.59896717,59215.0,59214.0,0.0491]
[1723883084127,0.23816717,59215.0,59214.0,0.0491]
[1723883084319,0.59896717,59215.0,59214.0,0.0491]
[1723883085424,0.531637,59215.0,59214.0,0.0491]
[1723883085622,0.59897148,59215.0,59214.0,0.0491]
[1723883085824,0.23817148,59215.0,59214.0,0.0491]
[1723883086024,0.59897148,59215.0,59214.0,0.0491]
[1723883086922,0.23817148,59215.0,59214.0,0.0491]
[1723883087425,0.59897148,59215.0,59214.0,0.0491]
[1723883090018,0.23817148,59215.0,59214.0,0.0491]
[1723883090326,0.531637,59215.0,59214.0,0.0491]
[1723883091129,0.170837,59215.0,59214.0,0.0491]
[1723883091518,0.531637,59215.0,59214.0,0.0491]
[1723883093733,0.531637,59215.0,59214.0,0.001]
[1723883094632,0.68345331,59215.0,59214.0,0.001]
[1723883094831,0.067542,59210.0,59209.0,0.048]
[1723883095019,0.641642,59210.0,59209.0,0.048]
[1723883095327,0.72584213,59210.0,59209.0,0.048]
[1723883095530,0.72584213,59210.0,59204.0,0.0466]
[1723883095531,0.067548,59205.0,59204.0,0.0466]
[1723883095728,0.541648,59205.0,59204.0,0.0466]
[1723883096628,0.542648,59205.0,59204.0,0.0586]
[1723883096832,0.543648,59205.0,59204.0,0.0706]
[1723883097333,0.543648,59205.0,59204.0,0.08091131]
[1723883098033,0.543648,59205.0,59204.0,0.0706]
[1723883098227,0.541648,59205.0,59204.0,0.0486]
[1723883098426,0.541648,59205.0,59204.0,0.0496]
[1723883100524,0.448348,59205.0,59204.0,0.0496]
[1723883100729,0.541648,59205.0,59204.0,0.0496]
[1723883101427,0.541648,59205.0,59204.0,0.003]
[1723883101830,0.448348,59205.0,59204.0,0.003]
[1723883102031,0.541648,59205.0,59204.0,0.003]
[1723883107833,0.180848,59205.0,59204.0,0.003]
[1723883108140,0.902448,59205.0,59204.0,0.003]
[1723883111940,0.541648,59205.0,59204.0,0.003]
[1723883112448,0.60893902,59205.0,59204.0,0.003]
[1723883117051,0.541648,59205.0,59204.0,0.003]
[1723883118037,0.180848,59205.0,59204.0,0.003]
[1723883118243,0.541648,59205.0,59204.0,0.003]
[1723883118845,0.180848,59205.0,59204.0,0.003]
[1723883119147,0.541648,59205.0,59204.0,0.003]
[1723883119850,0.180848,59205.0,59204.0,0.003]
[1723883120243,0.541648,59205.0,59204.0,0.003]
[1723883120740,0.180848,59205.0,59204.0,0.003]
[1723883121049,0.541648,59205.0,59204.0,0.003]
[1723883121447,0.180848,59205.0,59204.0,0.003]
[1723883121747,0.541648,59205.0,59204.0,0.003]
[1723883122142,0.180848,59205.0,59204.0,0.003]
[1723883122344,0.541648,59205.0,59204.0,0.003]
[1723883123444,0.26504006,59205.0,59204.0,0.003]
[1723883123739,0.62584006,59205.0,59204.0,0.003]
[1723883123942,0.26504006,59205.0,59204.0,0.003]
[1723883124143,0.62584006,59205.0,59204.0,0.003]
[1723883124338,0.56902345,59205.0,59204.0,0.05360436]
[1723883126247,0.56902345,59205.0,59204.0,0.003]
[1723883126853,0.56902345,59205.0,59204.0,0.05366434]